Cogmind - Beta 13 @@@ ROGUE MODE // 2024.04.28 @ 21:33:47 Player: Rubbe Result: Destroyed by Y-45 Defender with Heavy Assault Rifle Performance ------------- Evolutions (1) 500 Regions Visited (3) 600 Robots Destroyed (21) 105 Value Destroyed (360) 360 Prototype IDs (0) 0 Alien Tech Used (0) 0 Bonus (0) 0 TOTAL SCORE: 1565 Bonus ------- None Cogmind --------- Core Integrity 0/400 Matter 15/300 Energy 90/125 System Corruption 12% Temperature Cool (27) Movement Core (50) Location -9/Materials Parts ------- > --- POWER (1) -------- Light Ion Engine > --- PROPULSION (4) --- (None) > --- UTILITY (2) ------ (None) > --- WEAPON (2) ------- (None) > --- INVENTORY (5) ---- Actuator Array EM Pulse Gun Improved Medium Laser Peak State ------------ > --- POWER ------------ Ion Engine > --- PROPULSION ------- Airjet Airjet Airjet Airjet > --- UTILITY ---------- Actuator Array Actuator Array > --- WEAPON ----------- EM Pulse Gun Plasma Cutter > --- INVENTORY -------- Grenade Launcher Rocket Launcher [Rating: 22] Favorites ----------- Power Ion Engine Engine Ion Engine Propulsion Aluminum Leg Leg Aluminum Leg Wheel Wheel Hover Unit Airjet Utility Small Storage Unit Device Actuator Array Storage Small Storage Unit Protection Light Armor Plating Weapon Small Laser Energy Gun Small Laser Ballistic Gun Assault Rifle Launcher Rocket Launcher Special Weapon Plasma Cutter Build | -11 -10 -10 -9 ------- Run | Yrd Mat Min Mat Slots Evolved 2 | . . . 2 Power . | . . . . Propulsion 2 | . . . 2 Utility . | . . . . Weapon . | . . . . Parts Attached 33 | 8 . 6 19 Power 6 | 3 . 1 2 Engine 6 | 3 . 1 2 Core . | . . . . Reactor . | . . . . Propulsion 8 | 2 . . 6 Treads . | . . . . Leg 3 | 2 . . 1 Wheel 1 | . . . 1 Hover 4 | . . . 4 Flight . | . . . . Utility 6 | 1 . 1 4 Device 3 | . . . 3 Storage 1 | 1 . . . Processor . | . . . . Hackware . | . . . . Protection 2 | . . 1 1 Artifact . | . . . . Weapon 13 | 2 . 4 7 Energy Gun 4 | 1 . 1 2 Energy Cannon . | . . . . Ballistic Gun 2 | 1 . 1 . Ballistic Cannon . | . . . . Launcher 2 | . . . 2 Special Weapon 5 | . . 2 3 Impact Weapon . | . . . . Slashing Weapon . | . . . . Piercing Weapon . | . . . . Special Melee Weapon . | . . . . Unidentified Prototypes . | . . . . Parts Lost 9 | . . 3 6 Power 2 | . . 1 1 Propulsion 2 | . . . 2 Utility 2 | . . . 2 Weapon 3 | . . 2 1 Highest Loss Streak 4 | . . 3 4 To Critical Strikes . | . . . . Average Slot Usage (%) 75 | . 85 84 66 Engine 10 | . 14 12 8 Leg 18 | . 28 28 7 Wheel 1 | . . . 2 Hover 8 | . . . 17 Device 4 | . . . 8 Storage 8 | . 14 14 2 Protection 3 | . . 2 4 Energy Gun 7 | . 14 11 2 Ballistic Gun 6 | . 14 10 . Launcher 1 | . . . 4 Special Weapon 4 | . . 3 6 Naked Turns 14 | . . . 14 Heaviest Build 18 | 11 11 16 18 Greatest Support 32 | 20 20 20 32 Greatest Overweight (x) 4 | . . . 4 Average Overweight (x) . | . . . . Largest Inventory Capacity 8 | 8 8 8 8 Average Capacity 6 | 7 8 8 5 Most Carried 8 | 5 6 8 8 Average Carried 4 | 1 3 5 4 Final Capacity 8 | 8 8 8 5 Final Carried 8 | 2 6 8 3 Class Distribution -------------------- 100% | Mutant Dominant Class ---------------- Mutant | -10/Materials Mutant | -10/Mines Mutant | -9/Materials Resources | -11 -10 -10 -9 ----------- Run | Yrd Mat Min Mat Matter Collected 378 | 249 . 30 99 Remotely . | . . . . Salvage Created 329 | . . 57 272 Parts 30 | . . 9 21 Haulers Intercepted . | . . . . Recyclers Shooed 1 | . . . 1 Parts Field Recycled . | . . . . Retrieved Matter . | . . . . Parts Self-Destructed . | . . . . Prevented . | . . . . Kills | -11 -10 -10 -9 ------- Run | Yrd Mat Min Mat Combat Hostiles Destroyed 14 | . . 3 11 Guns 1 | . . 1 . Cannons 2 | . . 2 . AOE 11 | . . . 11 Classes Destroyed 8 | . . 3 5 Worker 3 | . . 2 1 Builder 1 | . . 1 . Recycler 2 | . . . 2 Watcher 1 | . . . 1 Swarmer 9 | . . 3 6 Grunt 3 | . . . 3 Duelist 1 | . . . 1 Sentry 1 | . . . 1 Best Kill Streak 9 | . . 4 9 Combat Bots Only 7 | . . 2 7 Max Kills in Single Turn 5 | . . 2 5 Gunslinging . | . . . . Exploded 5 | . . . 5 Melee . | . . . . Uniques/NPCs Destroyed . | . . . . Combat | -11 -10 -10 -9 -------- Run | Yrd Mat Min Mat Hostile Shots Fired 87 | . . 41 46 Missed 23 | . . 7 16 Damage Taken 1160 | . . 263 897 Core 443 | . . 43 400 Absorbed by Shields . | . . . . Core Remaining (%) 91 | 100 . 82 . Volleys Fired 27 | . . 12 15 Largest 2 | . . 2 1 Hottest 200 | . . 200 33 Shots Fired 33 | . . 18 15 Gun 8 | . . 8 . Cannon . | . . . . Launcher 13 | . . . 13 Special 12 | . . 10 2 Kinetic 2 | . . 2 . Thermal 18 | . . 16 2 Explosive 13 | . . . 13 Electromagnetic . | . . . . Robot Hit Streak 4 | . . 2 4 Robot Miss Streak 2 | . . 2 2 Penetration Max . | . . . . Secondary Targets . | . . . . Shots Hit Robots 16 | . . 8 8 Core Hits 24 | . . 5 19 Critical Kills . | . . . . Critical Parts Destroyed . | . . . . Critical Strikes . | . . . . Melee Attacks . | . . . . Impact . | . . . . Slashing . | . . . . Piercing . | . . . . Sneak Attacks . | . . . . Combat Hostiles . | . . . . Follow-up Attacks . | . . . . Damage Inflicted 1077 | . . 205 872 Guns 61 | . . 61 . Cannons . | . . . . Explosions 794 | . . . 794 Melee . | . . . . Ramming 66 | . . . 66 Kinetic 26 | . . 26 . Thermal 191 | . . 179 12 Explosive 794 | . . . 794 Electromagnetic . | . . . . Impact . | . . . . Slashing . | . . . . Piercing . | . . . . Highest Corruption 12 | . . . 12 Average Corruption 11 | . . . 11 Corruption Purged . | . . . . Corruption Blocked . | . . . . Effects 9 | . . . 9 Matter Fused 5 | . . . 5 Parts Rejected 1 | . . . 1 Data Loss (minor) 1 | . . . 1 Misdirections 2 | . . . 2 Overload Shots . | . . . . Overflow Damage 56 | . . 8 48 Projectiles 8 | . . 8 . Explosions 48 | . . . 48 Melee . | . . . . Knockbacks . | . . . . Impact . | . . . . Kinetic . | . . . . Secondary . | . . . . Self-Inflicted Damage 454 | . . . 454 Shots 10 | . . . 10 Rammed . | . . . . Targets Rammed . | . . . . Kicked . | . . . . Crushed . | . . . . Highest Temperature 239 | . . 239 4 Average Temperature 135 | . . 143 2 Received Heat Transfer 105 | . . . 105 Siege Activations . | . . . . Robots Corrupted . | . . . . Combat Hostiles . | . . . . Parts Fried . | . . . . Impact Corruptions . | . . . . Robots Melted . | . . . . Combat Hostiles . | . . . . Parts Melted 1 | . . 1 . Heat Transferred 412 | . . 375 37 Parts Sabotaged . | . . . . Parts Stolen . | . . . . Parts Stripped . | . . . . Power Chain Reactions . | . . . . Alert | -11 -10 -10 -9 ------- Run | Yrd Mat Min Mat Peak Influence 467 | . 14 61 467 Initial 23 | . . 5 23 Average 64 | . 7 49 111 Maximum Alert Level 2 | . . . 2 Low Security (%) 87 | 100 100 100 70 Level 1 11 | . . . 26 Level 2 1 | . . . 2 Level 3 . | . . . . Level 4 . | . . . . Level 5 . | . . . . High Security . | . . . . Max Security . | . . . . Squads Dispatched 1 | . . . 1 Investigation . | . . . . Extermination . | . . . . Reinforcement 1 | . . . 1 Assault . | . . . . Garrison . | . . . . Intercept . | . . . . Searches Triggered . | . . . . Construction Impeded . | . . . . Haulers Reinforced . | . . . . Active Scanning Responses . | . . . . Cargo Convoy Interrupts . | . . . . Stealth | -11 -10 -10 -9 --------- Run | Yrd Mat Min Mat Distress Signals 2 | . . . 2 Communications Jammed . | . . . . Distress Signals . | . . . . Times Spotted 21 | . . 3 18 Peak Tracking Total 8 | . . 3 8 Tactical Retreats 1 | . . . 1 Traps | -11 -10 -10 -9 ------- Run | Yrd Mat Min Mat Traps Triggered . | . . . . Indirectly . | . . . . Trap Hack Attempts . | . . . . Triggered . | . . . . Disarmed . | . . . . Reprogrammed . | . . . . Reused . | . . . . Traps Extracted . | . . . . Installed . | . . . . Triggered . | . . . . Most Traps Carried 3 | . . 3 3 Machines | -11 -10 -10 -9 ---------- Run | Yrd Mat Min Mat Machines Disabled 4 | . . . 4 Max in Single Turn 2 | . . . 2 Machines Repaired . | . . . . Machines Dismantled 1 | . . . 1 Machines Sabotaged . | . . . . Overloaded Fab Kills . | . . . . Hacking | -11 -10 -10 -9 --------- Run | Yrd Mat Min Mat Machines Accessed 2 | . 1 . 1 Terminals 2 | . 1 . 1 Fabricators . | . . . . Repair Stations . | . . . . Recycling Units . | . . . . Scanalyzers . | . . . . Garrison Access . | . . . . Total Hacks 6 | . 3 . 3 Successful 3 | . 1 . 2 Failed 3 | . 2 . 1 Catastrophic 1 | . 1 . . Database Lockouts . | . . . . Manual . | . . . . Terminals 6 | . 3 . 3 Fabricators . | . . . . Repair Stations . | . . . . Recycling Units . | . . . . Scanalyzers . | . . . . Garrison Access . | . . . . Terminal Hacks 3 | . 1 . 2 Record 1 | . . . 1 Locate Traps 1 | . 1 . . Hauler Manifests 1 | . . . 1 Fabricator Hacks . | . . . . Repair Station Hacks . | . . . . Recycling Unit Hacks . | . . . . Scanalyzer . | . . . . Garrison Access Hacks . | . . . . Unauthorized Hacks . | . . . . Terminals . | . . . . Fabricators . | . . . . Repair Stations . | . . . . Recycling Units . | . . . . Scanalyzers . | . . . . Garrison Access . | . . . . Data Cores Recovered . | . . . . Used . | . . . . Hacking Detections 2 | . 1 . 1 Full Trace Events 2 | . 1 . 1 Feedback Events . | . . . . Feedback Blocked . | . . . . Robot Schematics Acquired . | . . . . Robots Built . | . . . . Authchips . | . . . . Time . | . . . . Total Robot Build Rating . | . . . . Part Schematics Acquired . | . . . . Parts Built . | . . . . Authchips . | . . . . Time . | . . . . Total Part Build Rating . | . . . . Parts Repaired . | . . . . Time . | . . . . Parts Recycled . | . . . . Recycled Matter . | . . . . Retrieved Matter . | . . . . Retrieved Components . | . . . . Parts Scanalyzed . | . . . . Part Schematics Acquired . | . . . . Parts Damaged . | . . . . Bothacking | -11 -10 -10 -9 ------------ Run | Yrd Mat Min Mat Used RIF Installer . | . . . . Robots Hacked . | . . . . Non-combat . | . . . . Combat . | . . . . Robot Hacks Applied . | . . . . Relay Couplers Released . | . . . . Fabnet Peak Effective % . | . . . . Robots Rewired . | . . . . Allies Hacked . | . . . . Hacks Repelled . | . . . . Allies | -11 -10 -10 -9 -------- Run | Yrd Mat Min Mat Total Allies . | . . . . Largest Group . | . . . . Highest-Rated Group . | . . . . Highest-Rated Ally . | . . . . Total Orders . | . . . . Ally Attacks . | . . . . Total Damage . | . . . . Kills . | . . . . Allies Corrupted . | . . . . Allies Melted . | . . . . Intel | -11 -10 -10 -9 ------- Run | Yrd Mat Min Mat Robot Analysis Total . | . . . . Derelict Logs Recovered . | . . . . Drone Launches . | . . . . Drone Recoveries . | . . . . Exploration | -11 -10 -10 -9 ------------- Run | Yrd Mat Min Mat Turns Passed 723 | 76 88 258 301 Spaces Moved 514 | 63 71 163 217 Core 53 | 22 . . 31 Treads . | . . . . Legs 302 | 41 71 163 27 Wheels 45 | . . . 45 Hover 114 | . . . 114 Flight . | . . . . Fastest Speed 48 | 50 120 120 48 Average Speed 100 | 95 120 120 81 Slowest Speed 250 | 120 120 120 250 Overloaded Moves . | . . . . Propulsion Burnouts . | . . . . Robots Hopped . | . . . . Cave-ins Triggered . | . . . . Exploration Rate (%) 18 | 5 15 33 20 Regions Visited 3 Branch Regions 1 Pre-discovered Areas . | . . . . Known Exits Taken . | . . . . Unknown Exits Taken 3 | 1 1 1 . Scrap Searched . | . . . . Spaces Dug . | . . . . Terrain Destroyed 99 | . . 1 98 Melee . | . . . . Projectile 1 | . . 1 . AOE 98 | . . . 98 Terrain Rammed 7 | . . . 7 Walls Destroyed . | . . . . Machines Disabled . | . . . . Actions | -11 -10 -10 -9 --------- Run | Yrd Mat Min Mat Total 648 | 78 74 186 310 Wait 22 | . . . 22 Move 511 | 62 70 162 217 Hop . | . . . . Pick Up 33 | 8 4 6 15 Fast Attach . | . . . . Attach 25 | 6 . 4 15 Detach . | . . . . Swap 8 | 2 . 2 4 Drop 7 | . . . 7 Fire 27 | . . 12 15 Melee . | . . . . Ram 7 | . . . 7 Kick . | . . . . Crush . | . . . . Escape Stasis . | . . . . Rewire . | . . . . Trap . | . . . . Miscellaneous 8 | . . . 8 Route ------- -11/Scrapyard -10/Materials -10/Mines -9/Materials History --------- Turn | Location | Event 4 | -11/Scrapyard | Discovered new exit (range 15) 77 | -11/Scrapyard | Entered Materials 144 | -10/Materials | Discovered new exit (range 8) 165 | -10/Materials | Entered Mines 197 | -10/Mines | Met a Derelict bent on vengeance 234 | -10/Mines | Lost 3 parts (1p2w) 307 | -10/Mines | Found a hidden stash of uninstalled traps 312 | -10/Mines | Build established: Mutant 418 | -10/Mines | Discovered new exit (range 5) 423 | -10/Mines | Entered Materials 423 | -9/Materials | Evolved 2 slots: Propulsion x2 498 | -9/Materials | Released all parts (8) 585 | -9/Materials | System corruption reached 10% 715 | -9/Materials | Core integrity fell below 50% 716 | -9/Materials | Core integrity fell below 20% 724 | -9/Materials | Destroyed by Y-45 Defender with Heavy Assault Rifle Last Messages --------------- R-06 Scavenger collects Lgt. Ion Engine. Acquired 9 matter. R-06 Scavenger collects Flight Unit. Aluminum Leg destroyed. Rocket Launcher destroyed. Destroyed Rocket Launcher. Ion Engine destroyed. Destroyed Ion Engine. System corrupted: Matter fused (-6). Nuclear Reactor explodes. Y-45 Defender destroyed. R-06 Scavenger destroyed. Nuclear Reactor explodes. K-01 Serf destroyed. Actuator Array destroyed. Destroyed Actuator Array. R-06 Scavenger collects Terrain Scanner. The unstable cave ceiling collapses. Acquired Prototype Energy Gun. Critical hit (Burn: +37). Map ----- +----------------------------------------------------+ | ????????????????????????????? | | ????????????????????????????? | | ????????????????????????????? | | ????????????????????????????? | | ????????????????????????????? | | ????????????????????????????? | | ????????????????????????????? | | ????????????????????????????? | | ????????????????????????????? | | ????????????????????????????? | | ???????? ??? ??????????? | | ??????? ? ??????????? | | ??????? ? ??????????? | | ??????? """ ??????????? | | ??????# """ ??????????? | | ?????? "" ######?????? | | ###### ! #?????? | | # T +?????? | | # #?????? | | # #?????? | | # # #?????? | | # ! # #?????? | | # # #?????? | | # #?????? | | # +????? | | # !@ = #?????? | | # ![ # #???? | | # [ #### # | | # # * % | | # # | | #####Y## | | ????##### r # ### # | | ????????# !! ####???# | | ????????#### %###????????"" | | ??????????#####*#???????????? | | ??????????????# #######?????? | | ??????????????# # # ##????? | | ??????????????# # # ###??? | | ??????????????# # # #???? | | ???????????#??# # ##???? | | ???????????#??#+## # #???? | | ??????????#??## ##??? | | ?????????????# ###? | | ?????????????## % #?? | | ????????????#?# ##? | | ??????????????# ### | | ?????????????## | | ????????###???## ##### | | ???????? #???###??## | | ???????? ?? | +----------------------------------------------------+ Best States ------------- Heat Dissipation 28 Energy Generation 10 Energy Capacity 250 Matter Stores 269 Matter Capacity 300 Sight Range 16 Terrain Scan Range 14 Terrain Scan Density 10 Armor Coverage 150 Core Shielding 20 Evasion (%) 55 Item Schematics ----------------- None Robot Schematics ------------------ None Fabricated ------------ Nothing Alien Tech Used ----------------- None Achievements -------------- Quick And Dirty Challenges ------------ None Game ------ Seed CooledRelayRefractor Manual? 0 Play Time 00:12:35 Cumulative 2.5 hours Start 2024.04.28 @ 21:22:11 End 2024.04.28 @ 21:33:47 Sessions 1 Manual Loads 0 Difficulty Rogue Special Mode None Game No. 8 Rogue 8 Adventurer 0 Explorer 0 Win Type - Total 0 Types 0/0/0/0/0/0/0/0/0 Lore% 5 Gallery% 9 Achievement% 10 Wizard Run 0 Options --------- Layout 1 ASCII 0 Keyboard 0 Movement Mouse Keybinds 0 Fullscreen 1 Font 24/Smallcaps Map View 50x35 Zoom Use 0% Tactical HUD 0 Map Filters NONE Filters NONE Steam 1 RUN: 6ec99eb5-07d5-416e-b8fa-15c3e07107ad